bitfinex-derivatives/quotes_SOLF0:USTF0_20250224
["timestamp","ask_amount","ask_price","bid_price","bid_amount"]
[1740437030458,0.04714602,146.49,146.38,1.36630687]
[1740437030758,4.0516,146.48,146.38,1.36630687]
[1740437030957,6.8318,146.4,146.38,1.36630687]
[1740437031157,18.5116,146.48,146.38,1.36630687]
[1740437031659,0.04340012,146.44,146.42,8.045e-05]
[1740437032454,6.8304,146.43,146.42,8.045e-05]
[1740437032655,10.9768,146.43,146.42,8.045e-05]
[1740437033262,6.8336,146.36,146.35,15.62416847]
[1740437033461,4.1464,146.43,146.34,74.87888113]
[1740437033861,6.8341,146.35,146.34,64.31348113]
[1740437034059,14.46,146.38,146.34,50.93668113]
[1740437034265,14.46,146.38,146.26,4.1402]
[1740437034563,6.8336,146.37,146.26,4.1402]
[1740437034862,0.04699727,146.33,146.31,0.04979236]
[1740437035061,14.46,146.38,146.31,0.04979236]
[1740437035264,0.04369592,146.33,146.31,0.04979236]
[1740437035466,14.46,146.38,146.31,0.04979236]
[1740437035763,0.04971928,146.33,146.31,0.04979236]
[1740437035966,0.05200263,146.36,146.31,0.04979236]
[1740437037169,6.88570263,146.36,146.31,0.04979236]
[1740437037564,0.05200263,146.36,146.31,0.04979236]
[1740437040073,6.88590263,146.36,146.31,0.04979236]
[1740437040263,0.05200263,146.36,146.31,0.04979236]
[1740437041261,6.8344,146.35,146.31,0.04979236]
[1740437041864,6.88570263,146.36,146.31,0.04979236]
[1740437042069,0.05200263,146.36,146.31,0.04979236]
[1740437042872,6.8354,146.33,146.31,0.04979236]
[1740437043875,0.05200263,146.36,146.31,0.04979236]
[1740437044174,6.8349,146.34,146.31,0.04979236]
[1740437044374,0.05200263,146.36,146.31,0.04979236]
[1740437045978,6.8353,146.33,146.31,0.04979236]
[1740437046567,0.05200263,146.36,146.31,0.04979236]
[1740437047178,6.8351,146.33,146.31,0.04979236]
[1740437047378,0.05200263,146.36,146.31,0.04979236]
[1740437048479,6.8354,146.33,146.31,0.04979236]
[1740437049182,6.8355,146.32,146.31,0.04979236]
[1740437049676,6.88611346,146.33,146.31,0.04979236]
[1740437049876,6.8354,146.33,146.31,0.04979236]
[1740437050073,6.88080784,146.33,146.31,0.04979236]
[1740437050783,6.8355,146.32,146.31,0.04979236]
[1740437054378,0.04540784,146.33,146.22,8.2464]
[1740437054579,135.29704668,146.38,146.22,8.2464]
[1740437055074,6.8361,146.31,146.26,6.838]
[1740437055776,6.8361,146.31,146.27,0.04992453]
[1740437056081,0.04771623,146.3,146.27,0.04992453]
[1740437058984,6.88431623,146.3,146.27,0.04992453]
[1740437060688,0.04771623,146.3,146.27,0.04992453]
[1740437062790,0.04771623,146.3,146.27,6.88762453]
[1740437063785,0.04771623,146.3,146.27,0.04992453]
[1740437063991,0.04771623,146.3,146.29,6.8369]
[1740437065086,6.8352,146.33,146.29,6.8369]
[1740437065284,3.9164,146.37,146.3,6.8361]
[1740437066190,6.8342,146.35,146.31,6.8356]
[1740437066389,0.04873705,146.35,146.23,4.1635]
[1740437066589,135.29704668,146.38,146.32,0.05200411]
[1740437066893,0.05128328,146.3,146.24,1.19404018]
[1740437067091,0.04650112,146.36,146.34,0.04595973]
[1740437067393,6.834,146.36,146.34,0.04881479]
[1740437067587,6.88645564,146.36,146.34,0.04881479]
[1740437068291,0.05245564,146.36,146.34,0.04881479]
[1740437068585,6.8341,146.35,146.34,0.04881479]
[1740437069690,0.05245564,146.36,146.34,0.04881479]
[1740437070396,0.05245564,146.36,146.34,6.88301479]
[1740437070595,0.05245564,146.36,146.34,0.04881479]
[1740437070794,37.63427568,146.42,146.34,0.04881479]
[1740437071892,0.04766531,146.39,146.34,0.04881479]
[1740437074100,6.88006531,146.39,146.34,0.04881479]
[1740437074302,0.04766531,146.39,146.34,0.04881479]
[1740437074800,6.87996531,146.39,146.34,0.04881479]
[1740437075098,0.04766531,146.39,146.37,6.8328]
[1740437075491,0.04766531,146.39,146.34,0.04881479]
[1740437075694,6.8327,146.38,146.35,6.8339]
[1740437075895,0.04766531,146.39,146.34,0.04881479]
[1740437076299,6.8328,146.38,146.35,6.8337]
[1740437076500,0.04766531,146.39,146.34,0.04881479]
[1740437076701,6.87996531,146.39,146.36,6.8332]
[1740437076894,0.04766531,146.39,146.34,0.04881479]
[1740437078094,0.04766531,146.39,146.33,8.01412408]
[1740437079395,0.04766531,146.39,146.35,0.04977992]
[1740437079994,0.04766531,146.39,146.35,6.88377992]
[1740437080198,0.04766531,146.39,146.35,0.04977992]
[1740437081501,6.8336,146.36,146.35,0.04977992]
[1740437082898,0.04766531,146.39,146.35,0.04977992]
[1740437083503,6.8336,146.36,146.35,0.04977992]
[1740437084405,6.8336,146.36,146.35,7.992e-05]
[1740437086002,6.8397,146.23,146.22,75.30605258]
[1740437086197,6.8397,146.23,146.21,109.58365391]
[1740437086198,14.38,146.28,146.18,75.30605258]
[1740437087201,6.8409,146.21,146.18,75.30605258]
[1740437087603,6.88523961,146.21,146.18,75.3578637]
[1740437088905,6.88523961,146.21,146.18,0.05181112]
[1740437092203,6.8411,146.2,146.18,0.05181112]
[1740437092801,0.04433961,146.21,146.18,0.05181112]
[1740437093007,6.88513961,146.21,146.18,0.05181112]
[1740437098317,6.88513961,146.21,146.14,12.4176]
[1740437098517,194.0,146.3,146.14,12.4176]
[1740437098717,4.0092,146.33,146.14,12.4176]
[1740437099107,6.8384,146.26,146.14,12.4176]
[1740437099517,6.8384,146.26,146.21,6.8402]
[1740437099709,4.0092,146.33,146.19,0.04935149]
[1740437099912,0.04612558,146.25,146.05,13.6955]
[1740437100109,0.04612558,146.25,146.15,6.8434]
[1740437100110,14.38,146.24,146.15,6.8434]
[1740437100319,6.8416,146.19,146.08,4.0897]
[1740437100512,8.1313,146.23,146.08,4.0897]
[1740437100914,6.8433,146.16,146.08,4.0897]
[1740437101115,8.1313,146.23,146.08,4.0897]
[1740437101314,0.04952214,146.13,146.11,0.05041439]
[1740437101511,8.1313,146.23,146.09,6.846]
[1740437101711,0.04439488,146.13,146.09,6.846]
[1740437102019,0.04628518,146.17,146.15,0.04493274]
[1740437102214,6.8434,146.16,146.15,0.05000822]
[1740437113434,0.04662952,146.17,146.15,0.05000822]
[1740437113929,6.88922952,146.17,146.15,0.05000822]
[1740437114125,0.04662952,146.17,146.15,0.05000822]
[1740437115435,28.0377,146.25,146.15,10.85270822]
[1740437115635,6.8418,146.19,146.15,10.8027]
[1740437115829,130.95610145,146.24,146.15,10.8027]
[1740437116537,0.0461292,146.21,146.18,0.04447063]
[1740437116936,6.8416,146.19,146.18,0.04447063]
[1740437118033,6.8416,146.19,146.18,7.063e-05]
[1740437120341,6.8437,146.15,146.11,6.8452]
[1740437121337,6.8437,146.15,146.12,0.04821491]
[1740437121542,0.04591116,146.14,146.12,0.04821491]
[1740437121842,3.8854,146.23,146.09,4.0951]
[1740437122040,0.05000901,146.14,146.12,0.04723469]
[1740437122233,0.04619704,146.14,146.11,6.8451]
[1740437122431,6.89029704,146.14,146.12,0.04633072]
[1740437123440,0.04619704,146.14,146.12,0.04633072]
[1740437123742,0.04619704,146.14,146.12,6.89103072]
[1740437124344,6.89029704,146.14,146.12,0.04633072]
[1740437124543,0.04619704,146.14,146.12,0.04633072]
[1740437124942,6.89059704,146.14,146.12,0.04633072]
[1740437125144,0.04619704,146.14,146.12,0.04633072]
[1740437125443,6.89019704,146.14,146.12,0.04633072]
[1740437125745,0.04619704,146.14,146.12,0.04633072]
[1740437125945,6.89029704,146.14,146.12,0.04633072]
[1740437126247,0.04619704,146.14,146.12,0.04633072]
[1740437126448,6.89039704,146.14,146.12,0.04633072]
[1740437127938,6.89019704,146.14,146.12,0.04633072]
[1740437129451,6.8444,146.13,146.12,0.04633072]
[1740437129855,6.8444,146.13,146.12,3.072e-05]
[1740437133052,6.848,146.06,146.01,6.8498]
[1740437133453,6.8491,146.03,145.99,34.98661568]
[1740437133657,6.8491,146.03,145.99,28.13571568]
[1740437134044,6.85,146.01,146.0,0.04900383]
[1740437134245,6.85,146.01,145.99,28.13571568]
[1740437134452,6.85,146.01,145.99,28.18064406]
[1740437135959,6.89815695,146.02,145.99,0.04492838]
[1740437136159,0.04845695,146.02,145.99,0.04492838]
[1740437136955,6.89815695,146.02,145.99,0.04492838]
[1740437137349,0.04845695,146.02,145.99,0.04492838]
[1740437137553,6.8503,146.01,145.99,0.04492838]
[1740437138758,6.8505,146.0,145.99,2.838e-05]
[1740437140660,27.3505,146.0,145.99,2.838e-05]
[1740437141158,20.5,146.0,145.85,28.13571568]
[1740437141458,6.8571,145.86,145.85,28.13571568]
[1740437141859,6.8571,145.86,145.85,17.08581568]
[1740437142061,6.8571,145.86,145.85,4.58671568]
[1740437142456,0.04863089,145.87,145.75,4.58671568]
[1740437142763,20.5,145.88,145.75,4.58671568]
[1740437142960,0.6253,145.87,145.75,4.58671568]
[1740437143756,0.05239214,145.82,145.8,0.05096167]
[1740437143952,6.91159214,145.82,145.8,0.05096167]
[1740437144158,6.8592,145.82,145.8,0.05096167]
[1740437144456,6.91149848,145.82,145.8,0.05096167]
[1740437144761,6.91149848,145.82,145.69,4.178]
[1740437145061,228.82,145.81,145.57,75.30605258]
[1740437145261,24.5903,145.8,145.63,8.2311]
[1740437145460,6.8639,145.72,145.63,8.2311]
[1740437145657,14.34,145.71,145.57,75.30605258]
[1740437145956,0.04421506,145.69,145.66,0.04832124]
[1740437146161,14.34,145.7,145.57,75.30605258]
[1740437146456,14.34,145.7,145.66,0.04534575]
[1740437146655,0.045484,145.69,145.57,75.30605258]
[1740437146959,14.34,145.7,145.57,75.30605258]
[1740437147851,0.0444319,145.65,145.57,75.30605258]
[1740437148054,1.24763613,145.78,145.57,75.30605258]
[1740437148455,1.24769611,145.77,145.57,75.30605258]
[1740437149059,14.34,145.76,145.58,6.8702]
[1740437149261,0.04327669,145.68,145.66,0.04664827]
[1740437149557,195.24769611,145.75,145.59,4.1974]
[1740437149760,6.91714819,145.68,145.66,0.04928412]
[1740437150055,20.5,145.72,145.52,4.1544]
[1740437150363,195.24684923,145.71,145.52,8.3518]
[1740437150557,195.24684923,145.7,145.52,8.3518]
[1740437150758,6.8694,145.6,145.52,8.3518]
[1740437151153,0.05100238,145.57,145.52,8.3518]
[1740437153959,0.05100238,145.57,145.48,103.40229754]
[1740437154271,6.8705,145.58,145.49,4.0389]
[1740437154461,0.04559609,145.54,145.49,4.0389]
[1740437155963,14.34,145.64,145.49,4.0389]
[1740437156168,6.8699,145.59,145.49,4.0389]
[1740437156568,14.34,145.66,145.52,6.8726]
[1740437156769,6.8694,145.6,145.53,8.2225]
[1740437157063,14.34,145.66,145.53,8.2225]
[1740437157266,0.04504485,145.58,145.55,0.05229815]
[1740437157668,6.8698,145.59,145.53,8.2225]
[1740437157962,0.05208737,145.58,145.36,104.14734008]
[1740437158162,194.0,145.57,145.36,0.74504254]
[1740437158464,228.84,145.56,145.37,4.1492]
[1740437158666,228.84,145.56,145.36,0.74504254]
[1740437158667,230.08949954,145.56,145.36,0.74504254]
[1740437158859,6.8792,145.4,145.36,0.74504254]
[1740437159267,14.34,145.44,145.36,0.74504254]
[1740437159463,14.34,145.44,145.36,4.254e-05]
[1740437159667,0.04799279,145.39,145.36,4.254e-05]
[1740437159864,6.8802,145.37,145.36,4.254e-05]
[1740437160763,6.8798,145.38,145.36,4.254e-05]
[1740437160969,0.04799279,145.39,145.36,4.254e-05]
[1740437161564,6.8802,145.38,145.36,4.254e-05]
[1740437162165,0.04799279,145.39,145.36,4.254e-05]
[1740437163169,6.8773,145.43,145.36,4.254e-05]
[1740437163371,14.34,145.48,145.38,6.8797]
[1740437163764,6.8763,145.46,145.38,6.8797]
[1740437164062,14.34,145.48,145.41,6.8783]
[1740437164268,138.40543769,145.54,145.42,7.7312]
[1740437164269,6.8745,145.49,145.42,7.7312]
[1740437164468,6.8745,145.49,145.36,4.254e-05]
[1740437164667,138.40543769,145.54,145.36,4.254e-05]
[1740437164861,6.8754,145.48,145.36,4.254e-05]
[1740437165271,138.40543769,145.54,145.42,6.8778]
[1740437165462,138.40543769,145.54,145.42,101.96757834]
[1740437165664,0.04885126,145.49,145.47,0.04861964]
[1740437165972,138.40543769,145.54,145.36,14.34004254]
[1740437166569,6.8747,145.49,145.36,14.34004254]
[1740437166774,0.4871,145.49,145.43,6.877]
[1740437166971,138.40543769,145.54,145.43,6.877]
[1740437167168,0.05125246,145.47,145.45,0.04904738]
[1740437167375,138.40543769,145.54,145.45,0.04904738]
[1740437167578,138.40543769,145.54,145.36,14.34004254]
[1740437167969,6.8742,145.5,145.36,14.34004254]
[1740437168669,0.04869203,145.44,145.43,6.8773]
[1740437168875,6.8744,145.5,145.42,0.05138716]
[1740437169070,138.40543769,145.54,145.36,116.30762088]
[1740437169271,138.40543769,145.54,145.36,14.34004254]
[1740437169669,138.40543769,145.54,145.42,6.8775]
[1740437169867,8.5229,145.58,145.37,110.24327834]
[1740437170071,6.875,145.48,145.47,0.04697528]
[1740437170266,0.05243,145.49,145.47,0.04697528]
[1740437170579,6.92047972,145.49,145.46,0.0443279]
[1740437170875,7.7847,145.58,145.37,8.2757]
[1740437171675,7.7847,145.58,145.45,6.876]
[1740437171870,7.7847,145.58,145.46,8.0962]
[1740437172075,0.04712008,145.53,145.5,0.04832871]
[1740437172276,6.8736,145.51,145.5,0.04832871]
[1740437172774,0.04712008,145.53,145.5,0.04832871]
[1740437172972,6.8736,145.51,145.5,0.04832871]
[1740437173379,6.8733,145.52,145.5,0.04832871]
[1740437173580,0.04712008,145.53,145.5,0.04832871]
[1740437174078,6.8731,145.52,145.5,0.04832871]
[1740437174876,6.8736,145.51,145.5,0.04832871]
[1740437175077,0.04712008,145.53,145.5,0.04832871]
[1740437175374,6.8736,145.51,145.5,0.04832871]
[1740437175574,0.04712008,145.53,145.37,8.1891]
[1740437175775,18.2163,145.58,145.45,3.9508]
[1740437176974,0.04550217,145.53,145.5,0.045137]
[1740437177175,6.8736,145.51,145.5,0.045137]
[1740437180780,9.47071058,145.6,145.5,0.045137]
[1740437181181,6.8736,145.51,145.46,4.2454]
[1740437181576,9.47071058,145.6,145.46,4.2454]
[1740437181781,34.2411,145.58,145.38,6.8795]
[1740437181984,0.04958826,145.54,145.38,6.8795]
[1740437182281,6.8761,145.46,145.38,6.8795]
[1740437182481,6.8761,145.46,145.39,6.8791]
[1740437183278,0.04625432,145.44,145.41,0.04917775]
[1740437184681,6.8778,145.42,145.41,0.04917775]
[1740437186892,6.8778,145.42,145.36,6.28140621]
[1740437187082,6.92315432,145.44,145.38,6.8795]
[1740437187283,37.63427568,145.47,145.35,4.0074]
[1740437187987,0.04819922,145.42,145.4,0.05085201]
[1740437188188,37.63427568,145.47,145.4,0.05085201]
[1740437188382,0.0479349,145.42,145.4,0.05085201]
[1740437188587,37.63427568,145.47,145.4,0.05085201]
[1740437188782,0.0461247,145.42,145.4,0.05085201]
[1740437188982,6.8776,145.43,145.4,0.05085201]
[1740437189183,0.04791425,145.42,145.4,0.05085201]
[1740437189786,6.92581425,145.42,145.4,0.05085201]
[1740437189983,0.04791425,145.42,145.4,0.05085201]
[1740437190488,0.04791425,145.42,145.4,6.92935201]
[1740437190690,37.63427568,145.47,145.4,0.05085201]
[1740437191185,37.63427568,145.47,145.41,6.8783]
[1740437191379,9.47071058,145.47,145.41,6.8783]
[1740437191585,16.34591058,145.48,145.42,6.8778]
[1740437191884,0.05045986,145.45,145.42,6.8778]
[1740437192084,0.05045986,145.45,145.44,0.04694739]
[1740437194189,0.05045986,145.45,145.44,6.92384739]
[1740437194384,0.05045986,145.45,145.44,0.04694739]
[1740437195188,37.63427568,145.51,145.44,0.04694739]
[1740437196286,6.875,145.48,145.44,0.04694739]
[1740437196687,6.92233952,145.49,145.44,6.92344739]
[1740437197789,6.92233952,145.49,145.44,0.04694739]
[1740437198091,0.04773952,145.49,145.44,0.04694739]
[1740437198791,0.04773952,145.49,145.47,6.8754]
[1740437200591,0.04773952,145.49,145.48,6.875]
[1740437202592,0.04773952,145.49,145.47,6.92769872]
[1740437203189,0.04773952,145.49,145.47,0.05239872]
[1740437204293,6.875,145.48,145.47,0.05239872]
[1740437204885,0.04773952,145.49,145.47,0.05239872]
[1740437205494,6.875,145.48,145.47,0.05239872]
[1740437205894,0.04773952,145.49,145.47,0.05239872]
[1740437206090,6.875,145.48,145.47,0.05239872]
[1740437206505,0.04773952,145.49,145.38,4.1061]
[1740437206795,4.1578,145.47,145.38,4.1061]
[1740437207089,4.1578,145.47,145.36,28.48880025]
[1740437207292,4.2101,145.46,145.36,28.48880025]
[1740437207485,4.2101,145.46,145.4,0.05086302]
[1740437207689,0.05245498,145.42,145.4,0.05086302]
[1740437210387,0.05245498,145.42,145.41,6.8783]
[1740437211593,0.05245498,145.42,145.4,0.05086302]
[1740437211794,6.93065498,145.42,145.4,0.05086302]
[1740437211990,0.05245498,145.42,145.4,0.05086302]
[1740437212192,6.8783,145.41,145.4,0.05086302]
[1740437212692,0.05245498,145.42,145.4,0.05086302]
[1740437212887,0.05245498,145.42,145.41,6.8783]
[1740437214097,0.05245498,145.42,145.4,0.05086302]
[1740437214996,0.05245498,145.42,145.35,105.80917834]
[1740437215199,0.05245498,145.42,145.39,6.8788]
[1740437215398,0.05245498,145.42,145.35,105.80917834]
[1740437216197,0.05245498,145.42,145.37,0.04736427]
[1740437216895,0.05245498,145.42,145.41,6.8783]
[1740437217598,0.05245498,145.42,145.4,6.92468477]
[1740437218298,0.05245498,145.42,145.4,0.04598477]
[1740437219500,0.05245498,145.42,145.41,6.8783]
[1740437219703,0.05245498,145.42,145.4,0.04598477]
[1740437220198,6.93055498,145.42,145.4,0.04598477]
[1740437220400,0.05245498,145.42,145.4,0.04598477]
[1740437222301,6.93045498,145.42,145.4,0.04598477]
[1740437225303,6.8783,145.41,145.4,0.04598477]
[1740437225705,0.05245498,145.42,145.4,0.04598477]
[1740437225909,6.93035498,145.42,145.4,0.04598477]
[1740437230107,6.93055498,145.42,145.4,0.04598477]
[1740437230306,0.05245498,145.42,145.4,0.04598477]
[1740437230906,6.8783,145.41,145.4,0.04598477]
[1740437232211,0.05245498,145.42,145.4,0.04598477]
[1740437232511,6.93065498,145.42,145.4,0.04598477]
[1740437233312,6.8783,145.41,145.4,0.04598477]
[1740437235212,6.8783,145.41,145.37,6.87370781]
[1740437236213,0.05245498,145.42,145.37,6.87370781]
[1740437236409,0.05245498,145.42,145.38,0.04690213]
[1740437237015,6.8792,145.39,145.38,0.04690213]
[1740437240215,6.8792,145.39,145.35,6.8807]
[1740437240516,6.8792,145.39,145.35,6.881]
[1740437240712,4.2436,145.46,145.29,12.1866]
[1740437240916,180.02,145.45,145.27,75.30605258]
[1740437241314,180.02,145.45,145.35,0.04743321]
[1740437241613,180.02,145.45,145.27,177.27363092]
[1740437241813,180.02,145.45,145.27,130.45637859]
[1740437242113,6.8818,145.34,145.27,130.45637859]
[1740437242314,180.02,145.45,145.27,137.34117859]
[1740437242315,14.26,145.42,145.27,137.34117859]
[1740437242715,6.8825,145.33,145.27,137.34117859]
[1740437242918,14.26,145.42,145.27,130.45637859]
[1740437243115,6.8844,145.28,145.27,5.58360025]
[1740437243320,14.26,145.32,145.26,30.06845283]
[1740437243520,0.04791486,145.29,145.25,109.58365391]
[1740437243821,0.04791486,145.29,145.25,70.48673145]
[1740437244312,244.0,145.28,145.24,167.42182421]
[1740437244518,245.37665198,145.28,145.24,167.42182421]
[1740437244711,439.37674674,145.27,145.13,106.92309551]
[1740437244912,41.03,145.25,144.95,8.3098]
[1740437245117,459.87703112,145.24,144.95,8.3098]
[1740437245317,0.04605224,145.21,144.95,4.2143]
[1740437245620,20.5,145.19,145.18,101.1030167]
[1740437245821,6.8911,145.14,145.13,284.45697507]
[1740437246011,1.42389737,145.2,145.13,215.56697507]
[1740437246217,4.86238799,145.14,145.13,215.56697507]
[1740437248218,193.60952269,145.14,145.0,8.111]
[1740437248416,193.60952269,145.14,145.02,68.89018227]
[1740437248616,193.60952269,145.14,145.04,68.89018227]
[1740437248819,0.05056407,145.08,145.04,68.89018227]
[1740437249021,0.05056407,145.08,145.0,8.111]
[1740437249333,0.05056407,145.08,145.04,68.89018227]
[1740437249511,0.05056407,145.08,144.81,180.2]
[1740437249713,0.05056407,145.08,145.0,68.89018227]
[1740437249916,4.81723477,145.07,145.01,68.89018227]
[1740437250113,0.0506719,145.05,144.93,7.9674]
[1740437250313,0.0506719,145.05,144.99,68.89018227]
[1740437250515,14.26,145.12,144.99,68.89018227]
[1740437250719,14.26,145.12,144.92,3.9114]
[1740437250720,6.94055651,145.03,144.92,3.9114]
[1740437251023,0.05255755,144.99,144.87,3.842]
[1740437251523,19.12147177,145.02,144.95,68.89018227]
[1740437251819,4.86147177,145.01,144.95,68.89018227]
[1740437252024,0.04631341,145.0,144.87,3.842]
[1740437252220,4.90778518,145.0,144.87,3.842]
[1740437252526,4.86147177,145.0,144.94,68.89018227]
[1740437252725,0.05205214,144.95,144.94,68.89018227]
[1740437252922,14.26,145.02,144.87,3.842]
[1740437253124,0.05150033,144.96,144.9,68.89018227]
[1740437253325,921.90882572,144.9,144.87,3.842]
[1740437253919,921.96163665,144.9,144.87,10.7459]
[1740437254121,921.96163665,144.9,144.88,68.89018227]
[1740437254323,921.96163665,144.9,144.87,3.842]
[1740437254524,921.96163665,144.9,144.88,68.89018227]
[1740437254725,921.96163665,144.9,144.86,68.89018227]
[1740437255023,5.2134384,144.89,144.86,68.89018227]
[1740437255229,139.8717025,144.89,144.81,180.2]
[1740437255429,139.8717025,144.89,144.84,57.87688834]
[1740437255629,139.8717025,144.89,144.84,6.9053]
[1740437255834,5.26563945,144.88,144.81,180.2]
[1740437256128,5.26563945,144.88,144.76,8.1218]
[1740437256327,5.2134384,144.87,144.82,57.87688834]
[1740437256628,0.05066324,144.83,144.81,57.87688834]
[1740437256835,14.28,144.83,144.61,180.46]
[1740437257029,14.33270668,144.83,144.72,57.87688834]
[1740437257231,14.28,144.83,144.74,6.9094]
[1740437257431,0.0526286,144.79,144.73,57.87688834]
[1740437257831,0.0526286,144.79,144.68,8.1647]
[1740437258033,13.48983015,144.82,144.73,57.87688834]
[1740437258334,13.48983015,144.82,144.75,6.9089]
[1740437258529,0.05143575,144.79,144.74,57.87688834]
[1740437259034,0.04826205,144.78,144.74,57.87688834]
[1740437259331,240.37713675,144.78,144.63,8.1647]
[1740437259732,240.3288747,144.78,144.63,8.1647]
[1740437260034,0.05234223,144.72,144.71,6.9109]
[1740437260244,177.96751412,144.77,144.63,8.1647]
[1740437260434,177.96751412,144.77,144.63,22.4447]
[1740437261240,177.96751412,144.77,144.76,6.9085]
[1740437261540,0.05098859,144.78,144.74,180.58]
[1740437261745,14.28,144.89,144.79,6.9066]
[1740437262041,14.28,144.89,144.74,180.58]
[1740437262241,279.36631083,144.9,144.74,180.58]
[1740437262739,279.36631083,144.9,144.74,181.96178803]
[1740437262936,15.23316016,145.07,144.75,1.38169257]
[1740437263139,8.33926016,145.07,144.81,0.04532563]
[1740437263341,8.33926016,145.07,144.82,15.66102472]
[1740437263537,18.2566,145.11,144.94,6.8998]
[1740437263733,18.2566,145.11,144.94,101.96757834]
[1740437263934,18.2566,145.11,144.91,14.28]
[1740437264243,0.04681272,145.04,145.01,0.04768228]
[1740437264542,3.8846,145.1,144.91,14.28]
[1740437264736,0.05174857,145.04,145.01,0.04796885]
[1740437265040,3.8846,145.1,144.91,14.28]
[1740437265241,0.05036152,145.04,145.01,0.04805638]
[1740437265633,3.8846,145.1,144.97,6.8984]
[1740437265835,0.0494873,145.04,145.01,0.04645925]
[1740437266033,4.2509,145.13,144.91,14.28]
[1740437266236,4.1686,145.19,145.02,6.8959]
[1740437266442,0.05119717,145.04,145.02,108.86347834]
[1740437266640,4.1686,145.19,145.01,14.28]
[1740437266938,0.04344151,145.04,145.03,6.8954]
[1740437267146,4.1686,145.19,145.03,6.8954]
[1740437267343,0.04871823,145.11,145.09,0.04724056]
[1740437267535,4.1686,145.19,145.01,14.28]
[1740437267836,0.04379566,145.11,145.09,0.05138147]
[1740437268044,11.0568,145.19,145.01,14.28]
[1740437268242,0.05183521,145.11,145.1,60.23084407]
[1740437268438,6.8887,145.18,145.1,60.23084407]
[1740437268643,8.0959,145.22,145.1,60.23084407]
[1740437268842,0.04397686,145.12,145.1,60.23084407]
[1740437269042,8.33926016,145.34,145.2,228.12051151]
[1740437269340,7.9665,145.32,145.14,180.5]
[1740437269542,0.05198817,145.28,145.26,0.04810626]
[1740437269845,5.02711756,145.31,145.14,180.5]
[1740437270039,5.02711756,145.31,145.3,155.93969149]
[1740437270239,5.02711756,145.31,145.3,111.54579149]
[1740437270441,11.90941756,145.31,145.3,25.7499915]
[1740437270642,11.90941756,145.31,145.3,19.3626915]
[1740437270943,19.9599163,145.31,145.3,19.3626915]
[1740437271842,13.0776163,145.31,145.29,0.04521]
[1740437272042,13.0776163,145.31,145.22,21.34157011]
[1740437272546,6.8843,145.27,145.22,21.34157011]
[1740437273239,0.05089499,145.26,145.23,0.05002749]
[1740437273441,5.07801255,145.26,145.23,0.05002749]
[1740437274043,14.26,145.3,145.24,68.30529255]
[1740437275237,0.05032868,145.28,145.24,121.96692967]
[1740437275439,7.72151155,145.33,145.24,121.96692967]
[1740437276145,6.881,145.34,145.27,74.11229175]
[1740437276348,14.26,145.37,145.27,74.11229175]
[1740437276742,6.93237065,145.33,145.31,0.04375233]
[1740437276942,0.05087065,145.33,145.31,0.04375233]
[1740437277139,6.93237065,145.33,145.31,0.04375233]
[1740437277948,6.86376968,145.33,145.31,0.04375233]
[1740437278749,27.68698907,145.45,145.31,0.04375233]
[1740437278952,6.8809,145.35,145.29,27.80431322]
[1740437279145,36.13513751,145.44,145.29,27.80431322]
[1740437279349,0.04702954,145.39,145.37,0.0507579]
[1740437279650,6.879,145.38,145.37,0.0507579]
[1740437279851,14.67164866,145.38,145.37,0.0507579]
[1740437280347,28.93164866,145.38,145.37,0.0507579]
[1740437281051,28.93164866,145.38,145.37,5.79e-05]
[1740437282048,63.08264866,145.38,145.24,53.66163712]
[1740437282244,201.79264866,145.37,145.24,53.66163712]
[1740437282450,194.0,145.36,145.24,53.66163712]
[1740437282750,6.8848,145.26,145.24,53.66163712]
[1740437283242,0.05243848,145.26,145.24,53.70731187]
[1740437283841,6.93723848,145.26,145.24,0.04567475]
[1740437284252,0.05243848,145.26,145.24,0.04567475]
[1740437285547,6.8852,145.25,145.24,0.04567475]
[1740437285947,4.2517,145.32,145.24,0.04567475]
[1740437285948,13.7493,145.48,145.24,0.04567475]
[1740437286146,4.0452,145.39,145.24,0.04567475]
[1740437286346,4.89668582,145.34,145.27,6.8841]
[1740437286542,4.89668582,145.34,145.28,4.1783]
[1740437286852,4.0452,145.39,145.28,4.1783]
[1740437287049,0.04893274,145.32,145.3,0.04950825]
[1740437291748,0.04893274,145.32,145.27,5.35536254]
[1740437291951,0.04893274,145.32,145.21,1.0633]
[1740437292250,4.0452,145.39,145.21,1.0633]